bitfinex/quotes_SOLUSD_20251224
["timestamp","ask_amount","ask_price","bid_price","bid_amount"]
[1766577543195,47.74080578,122.11,122.06,9.87681357]
[1766577543895,47.74080578,122.11,122.06,8.19244656]
[1766577544103,47.74080578,122.11,122.06,9.87681357]
[1766577546708,49.42517279,122.11,122.05,30.36113881]
[1766577546875,47.74080578,122.11,122.05,30.36113881]
[1766577547172,49.42517279,122.11,122.06,1.68436701]
[1766577547397,47.74080578,122.11,122.06,1.68436701]
[1766577550108,47.74080578,122.11,122.06,9.87687281]
[1766577550404,23.14963402,122.11,122.06,8.1925058]
[1766577551402,23.14963402,122.11,122.05,28.6767718]
[1766577551708,49.42517279,122.11,122.05,30.36113881]
[1766577552000,47.74080578,122.11,122.05,30.36113881]
[1766577556015,47.74080578,122.11,122.05,31.30884107]
[1766577557522,47.74080578,122.11,122.06,2.63206927]
[1766577557696,23.14963402,122.11,122.06,2.63206927]
[1766577558409,23.14963402,122.11,122.06,10.82475562]
[1766577562011,23.14963402,122.11,122.07,2.63206927]
[1766577566520,23.84963402,122.11,122.07,3.29206927]
[1766577566695,23.84963402,122.11,122.07,0.66]
[1766577566907,0.7,122.1,122.07,0.66]
[1766577570122,0.7,122.09,122.04,0.66]
[1766577570323,0.7,122.09,122.05,3.29206927]
[1766577570324,0.7,122.08,122.05,3.29206927]
[1766577571524,8.89148263,122.08,122.05,3.29206927]
[1766577573326,8.89148263,122.08,122.06,0.66]
[1766577579229,23.15074307,122.09,122.06,0.66]
[1766577579409,23.84074307,122.09,122.06,0.66]
[1766577581732,8.88074307,122.09,122.06,0.66]
[1766577582130,33.47393075,122.09,122.06,0.66]
[1766577589940,33.47393075,122.09,122.06,3.29206927]
[1766577591426,33.47393075,122.09,122.06,0.66]
[1766577592937,8.88074307,122.09,122.06,0.66]
[1766577593124,8.19372693,122.08,122.06,0.66]
[1766577593439,8.88074307,122.09,122.06,0.66]
[1766577593641,17.07447,122.09,122.06,0.66]
[1766577594143,0.69,122.08,122.06,0.66]
[1766577594441,8.88372693,122.08,122.06,0.66]
[1766577595447,17.07538585,122.08,122.06,0.66]
[1766577597243,8.88372693,122.08,122.06,0.66]
[1766577597543,0.69,122.08,122.06,0.66]
[1766577598638,32.78435024,122.09,122.05,2.63206927]
[1766577599257,8.19116256,122.09,122.03,71.2943654]
[1766577599423,24.59520393,122.08,122.05,2.63206927]
[1766577600644,32.78680676,122.08,122.05,2.63206927]
[1766577601246,32.78680676,122.08,122.04,2.63206927]
[1766577604049,24.59520393,122.08,122.05,2.63206927]
[1766577604226,23.1509788,122.09,122.05,2.63206927]
[1766577604433,43.83723217,122.09,122.05,2.63206927]
[1766577604941,43.83723217,122.09,122.06,2.63206927]
[1766577604942,20.68625337,122.09,122.06,2.63206927]
[1766577605951,28.87696452,122.09,122.05,2.63206927]
[1766577606360,8.19071115,122.09,122.04,73.72607881]
[1766577606532,24.59318768,122.08,122.04,73.72607881]
[1766577606731,24.59318768,122.08,122.03,11.02656766]
[1766577606961,24.59318768,122.08,122.05,2.63206927]
[1766577611253,32.78463647,122.08,122.04,10.82604732]
[1766577611635,32.78463647,122.08,122.05,2.63206927]
[1766577614553,32.78463647,122.08,122.03,11.02647433]
[1766577614755,31.30189289,122.08,122.03,0.2]
[1766577614963,39.55722051,122.07,122.03,0.2]
[1766577615135,2.63206927,122.05,122.02,0.2]
[1766577615335,17.59206927,122.05,122.02,0.2]
[1766577615549,24.60529013,122.04,122.02,0.2]
[1766577615948,14.96,122.05,122.02,1.88574965]
[1766577616253,23.38623131,122.05,122.02,1.88574965]
[1766577616455,14.96,122.05,122.02,1.88574965]
[1766577616640,14.96,122.05,122.02,0.2]
[1766577616840,8.39600789,122.04,122.02,0.2]
[1766577617043,8.39600789,122.04,122.02,1.88574965]
[1766577617258,8.39600789,122.04,122.02,0.2]
[1766577617473,8.39600789,122.04,122.02,1.88574965]
[1766577619143,8.39600789,122.04,122.02,0.2]
[1766577620348,8.39600789,122.04,122.02,1.88574965]
[1766577624764,8.39600789,122.04,122.01,8.39600789]
[1766577624765,8.39600789,122.04,122.01,0.2]
[1766577624964,8.19299305,122.06,122.02,1.68574965]
[1766577625163,18.47475059,122.06,122.02,1.68574965]
[1766577625668,23.15299305,122.06,122.02,1.68574965]
[1766577625860,8.39540658,122.05,122.02,1.68574965]
[1766577628342,16.58880507,122.05,122.02,1.68574965]
[1766577628771,8.19339849,122.05,122.02,1.68574965]
[1766577629072,8.39540658,122.04,122.02,1.68574965]
[1766577631654,8.39540658,122.04,122.01,10.08115623]
[1766577631967,8.39540658,122.04,122.02,1.68574965]
[1766577632680,8.39540658,122.04,122.01,8.39540658]
[1766577632875,8.39540658,122.04,122.02,1.68574965]
[1766577635781,23.15300565,122.06,122.03,1.68574965]
[1766577635952,31.54841223,122.06,122.03,1.68574965]
[1766577636352,16.58841223,122.06,122.03,1.68574965]
[1766577637654,20.47795275,122.09,122.05,1.68574965]
[1766577637994,8.59540658,122.07,122.05,1.68574965]
[1766577638368,8.59540658,122.07,122.04,1.68574965]
[1766577642291,43.62987526,122.08,122.03,9.88042427]
[1766577643993,43.62987526,122.08,122.02,8.1953778]
[1766577644188,43.62987526,122.08,122.03,1.68574965]
[1766577644693,43.62987526,122.08,122.02,8.1953778]
[1766577644882,43.62987526,122.08,122.03,1.68574965]
[1766577647901,1.68574965,122.07,122.01,72.98145305]
[1766577648103,24.59923742,122.07,122.02,1.68574965]
[1766577648781,39.55923742,122.07,122.02,1.68574965]
[1766577648983,39.55923742,122.07,122.01,8.3957034]
[1766577649182,39.55923742,122.07,122.02,1.68574965]
[1766577653111,8.19269211,122.06,122.02,9.8811129]
[1766577654521,8.19269211,122.06,122.03,1.68574965]
[1766577658700,31.34763494,122.07,122.03,1.68574965]
[1766577658903,23.15227169,122.07,122.03,1.68574965]
[1766577660691,8.19536325,122.07,122.03,23.15424257]
[1766577660909,8.19536325,122.07,122.04,1.68574965]
[1766577661098,1.68574965,122.1,122.04,1.68574965]
[1766577661300,16.64574965,122.09,122.03,9.87999222]
[1766577662113,41.24297016,122.09,122.03,9.87999222]
[1766577662910,8.19134993,122.08,122.03,9.87999222]
[1766577665917,9.87709958,122.08,122.02,83.21847704]
[1766577666093,30.35547441,122.08,122.02,20.31847704]
[1766577666293,54.95471183,122.08,122.02,20.31847704]
[1766577666993,54.95471183,122.08,122.02,9.88080408]
[1766577668909,23.15264687,122.07,122.02,9.88080408]
[1766577670323,69.91768636,122.07,122.01,1.88574965]
[1766577670501,69.91768636,122.07,122.01,10.08172583]
[1766577671626,69.91768636,122.07,122.01,1.88574965]
[1766577671999,69.91768636,122.07,122.01,0.2]
[1766577672201,1.68574965,122.05,122.01,0.2]
[1766577672537,14.96,122.04,122.01,0.2]
[1766577672906,18.24070535,122.04,122.01,0.2]
[1766577673321,1.68574965,122.03,122.0,0.229629]
[1766577673507,1.68574965,122.01,121.99,0.2]
[1766577673906,19.92699324,122.02,121.99,0.2]
[1766577674228,8.1960495,122.01,121.99,0.2]
[1766577689242,23.15562944,122.02,121.99,0.2]
[1766577692338,8.19562944,122.02,121.99,0.2]
[1766577692543,23.15562944,122.02,121.99,0.2]
[1766577692736,34.19018415,122.02,121.99,0.2]
[1766577693846,34.19018415,122.02,121.99,1e-08]
[1766577693847,2.63585907,122.01,121.99,1e-08]
[1766577694233,5.91764107,122.01,121.99,1e-08]
[1766577694562,14.96,122.0,121.99,1e-08]
[1766577694955,14.96,122.0,121.97,0.2]
[1766577694956,18.241782,122.0,121.97,0.2]
[1766577695845,8.19739322,121.99,121.97,0.2]
[1766577697436,17.59585907,121.98,121.95,0.2]
[1766577697746,25.9957973,121.98,121.95,0.2]
[1766577697930,8.19873739,121.97,121.95,0.2]
[1766577698246,31.55828065,121.98,121.95,0.2]
[1766577698557,23.15672131,122.0,121.96,2.63585907]
[1766577698845,31.5581062,122.0,121.96,2.63585907]
[1766577699849,31.5581062,122.0,121.95,8.40005105]
[1766577700051,31.5581062,122.0,121.96,2.63585907]
[1766577700647,31.5581062,122.0,121.96,10.83501857]
[1766577700851,23.15672131,122.0,121.97,2.63585907]
[1766577704053,31.35588081,122.0,121.97,2.63585907]
[1766577704762,31.35588081,122.0,121.95,8.39976153]
[1766577704935,31.35588081,122.0,121.96,2.63585907]
[1766577707971,31.35588081,122.0,121.95,8.39976153]
[1766577708266,31.35588081,122.0,121.96,2.63585907]
[1766577710573,51.84768408,122.0,121.95,0.2]
[1766577710866,51.84768408,122.0,121.96,2.63585907]
[1766577710867,24.61336505,121.99,121.96,2.63585907]
[1766577711648,43.64852458,122.0,121.96,2.63585907]
[1766577712071,68.26188963,122.0,121.96,2.63585907]
[1766577712572,43.64852458,122.0,121.96,2.63585907]
[1766577712873,32.81096957,121.99,121.96,2.63585907]
[1766577714278,8.19760452,121.99,121.96,2.63585907]
[1766577714583,16.59767907,121.99,121.95,11.03593362]
[1766577714879,16.59767907,121.99,121.96,2.63585907]
[1766577717288,16.59767907,121.99,121.95,8.40007455]
[1766577717455,16.59767907,121.99,121.96,2.63585907]
[1766577718177,16.59767907,121.99,121.95,8.40007455]
[1766577718377,16.59767907,121.99,121.96,2.63585907]
[1766577719884,16.59767907,121.99,121.95,8.40007455]
[1766577720382,16.59767907,121.99,121.96,2.63585907]
[1766577720578,16.59767907,121.99,121.97,2.63585907]
[1766577720766,16.59767907,121.99,121.96,2.63585907]
[1766577721157,16.59767907,121.99,121.95,2.83585907]
[1766577723683,16.59767907,121.99,121.95,0.2]
[1766577723884,16.59767907,121.99,121.95,2.83585907]
[1766577725890,16.59767907,121.99,121.95,0.2]
[1766577726183,16.59767907,121.99,121.95,2.83585907]
[1766577727889,23.15704923,122.0,121.97,2.63585907]
[1766577728262,47.77041428,122.0,121.97,2.63585907]
[1766577728482,47.77041428,122.0,121.96,2.63585907]
[1766577728688,23.15704923,122.0,121.96,2.63585907]
[1766577728990,8.39999625,121.99,121.96,2.63585907]
[1766577729661,8.39999625,121.99,121.97,2.63585907]
[1766577729864,8.39999625,121.99,121.96,2.63585907]
[1766577730085,16.59744183,121.99,121.96,2.63585907]
[1766577730688,16.59744183,121.99,121.95,8.39999625]
[1766577730866,16.59744183,121.99,121.96,2.63585907]
[1766577735994,8.39999625,121.99,121.97,2.63585907]
[1766577736301,43.64855628,122.0,121.95,2.83585907]
[1766577736597,8.19934722,121.99,121.95,2.83585907]
[1766577736896,8.19934722,121.99,121.96,2.63585907]
[1766577737480,16.3968485,121.99,121.96,2.63585907]
[1766577737998,16.3968485,121.99,121.96,1.68729857]
[1766577741878,23.1570184,122.0,121.96,1.68729857]
[1766577742398,31.55692919,122.0,121.97,1.68729857]
[1766577743192,123.08585912,122.04,121.99,1.68729857]
[1766577743414,16.59424106,122.04,122.0,1.68729857]
[1766577743796,16.59424106,122.04,122.01,1.68729857]
[1766577743993,16.59424106,122.04,121.97,37.0954009]
[1766577744306,16.59424106,122.04,122.0,1.68729857]
[1766577747408,16.59424106,122.04,122.01,1.68729857]
[1766577748013,16.59424106,122.04,121.99,8.19737295]
[1766577748014,1.68729857,122.08,122.03,1.68729857]
[1766577748303,39.55923742,122.07,122.03,1.68729857]
[1766577748710,14.96,122.07,122.03,1.68729857]
[1766577748894,14.96,122.07,122.04,1.68729857]
[1766577749695,23.15209111,122.07,122.04,1.68729857]
[1766577750496,23.82209111,122.07,122.04,2.39729857]
[1766577751112,23.82209111,122.07,122.04,0.71]
[1766577751316,23.82209111,122.07,122.04,2.39729857]
[1766577751706,23.15209111,122.07,122.05,0.71]
[1766577752400,23.82209111,122.07,122.05,0.71]
[1766577752915,14.96,122.07,122.05,2.39729857]
[1766577754210,44.29816213,122.09,122.06,2.39729857]
[1766577754409,23.82088341,122.09,122.06,2.39729857]
[1766577755002,8.86088341,122.09,122.06,2.39729857]
[1766577757926,8.86088341,122.09,122.06,0.71]
[1766577758424,8.86088341,122.09,122.06,2.39729857]
[1766577759630,8.86088341,122.09,122.06,0.71]
[1766577763731,0.67,122.07,122.03,0.66]
[1766577764301,1.68729857,122.07,122.03,0.66]
[1766577764497,0.67,122.06,122.03,0.66]
[1766577764701,0.67,122.04,122.01,0.66]
[1766577764926,0.67,122.03,122.01,0.66]
[1766577766627,8.86517062,122.03,122.01,0.66]
[1766577768118,8.86517062,122.03,121.99,1.68729857]
[1766577768119,8.86517062,122.03,122.0,0.66]
[1766577771014,17.06317622,122.03,122.0,0.66]
[1766577771437,0.67,122.02,121.99,2.34729857]
[1766577772036,15.63,122.02,121.99,2.34729857]
[1766577772223,15.63,122.02,121.99,0.66]
[1766577772539,0.67,122.01,121.98,0.66]
[1766577773533,8.86648836,122.01,121.98,0.66]
[1766577773739,14.96,122.0,121.98,0.66]
[1766577774135,15.63,122.0,121.96,1.68729857]
[1766577774343,15.63,122.0,121.97,0.66]
[1766577774925,40.24336505,122.0,121.97,0.66]
[1766577775517,48.44045714,122.0,121.97,0.66]
[1766577775741,23.82709209,122.0,121.97,0.66]
[1766577775922,48.44045714,122.0,121.97,0.66]
[1766577777937,0.67,121.99,121.97,0.66]
[1766577778234,8.86750311,121.99,121.96,0.66]
[1766577778440,0.67,121.98,121.96,0.66]
[1766577778825,8.19750311,121.99,121.96,0.66]
[1766577779627,8.86750311,121.99,121.96,0.66]
[1766577789047,0.7,121.98,121.95,0.9]
[1766577789456,15.66,121.98,121.95,0.9]
[1766577790654,15.66,121.98,121.96,0.7]
[1766577791450,23.85697783,122.0,121.97,0.7]
[1766577791625,33.94489624,122.0,121.97,0.7]
[1766577791828,23.85697783,122.0,121.97,0.7]
[1766577793254,33.94411141,122.0,121.97,0.7]
[1766577793550,23.85697783,122.0,121.97,0.7]
[1766577793952,18.98340434,122.01,121.97,1.68729857]
[1766577794148,18.98340434,122.01,121.98,0.7]
[1766577795551,8.89627076,122.01,121.98,0.7]
[1766577795954,17.09547088,122.01,121.98,0.7]
[1766577796151,8.89627076,122.01,121.98,0.7]
[1766577796347,23.15920012,122.02,121.98,0.7]
[1766577796560,23.15920012,122.02,122.0,0.7]
[1766577796561,8.19920012,122.02,122.0,0.7]
[1766577796854,8.89507526,122.03,122.0,0.7]
[1766577797158,0.7,122.02,122.0,0.7]
[1766577808564,17.09234588,122.04,122.01,0.7]
[1766577808766,0.7,122.04,122.01,2.63516693]
[1766577808942,0.7,122.04,122.02,0.7]
[1766577809142,10.43767296,122.05,122.02,2.63516693]
[1766577809368,0.7,122.07,122.04,0.7]
[1766577809566,8.89170814,122.08,122.04,3.33516693]
[1766577809761,0.7,122.08,122.06,0.7]
[1766577810153,8.890679,122.09,122.06,0.7]
[1766577810754,0.7,122.09,122.06,0.7]
[1766577811259,23.15028522,122.1,122.07,0.7]
[1766577811260,23.85028522,122.1,122.07,0.7]
[1766577811462,8.89028522,122.1,122.07,0.7]
[1766577813558,23.84964912,122.11,122.08,0.7]
[1766577813862,0.7,122.11,122.08,0.7]
[1766577814070,18.49516693,122.12,122.08,0.7]
[1766577814257,37.12590769,122.12,122.08,0.7]
[1766577814444,15.86,122.12,122.09,0.7]
[1766577815169,0.9,122.12,122.09,0.7]
[1766577815370,11.72393794,122.12,122.09,0.7]
[1766577820866,9.08877101,122.12,122.09,0.7]
[1766577821074,11.02393794,122.12,122.09,0.7]
[1766577821378,0.7,122.11,122.09,0.7]
[1766577822780,8.88948541,122.11,122.09,0.7]
[1766577826980,8.88948541,122.11,122.06,8.19239822]
[1766577827163,8.88948541,122.11,122.07,0.68]
[1766577827559,0.7,122.1,122.07,0.68]
[1766577827962,8.18948541,122.11,122.09,0.68]
[1766577834867,8.88948541,122.11,122.08,2.63516693]
[1766577835067,8.88948541,122.11,122.08,0.68]
[1766577839788,0.7,122.11,122.08,0.68]
[1766577840095,9.08898363,122.12,122.09,0.68]
[1766577843700,0.9,122.12,122.09,0.68]
[1766577846109,0.9,122.12,122.1,0.68]
[1766577848703,0.9,122.12,122.09,3.34516693]
[1766577852098,0.9,122.12,122.09,0.71]
[1766577852418,0.9,122.12,122.09,3.34516693]
[1766577853314,0.2,122.12,122.1,0.71]
[1766577853683,0.92,122.12,122.1,0.71]
[1766577853882,0.92,122.12,122.09,3.34516693]
[1766577855806,0.92,122.12,122.1,3.34516693]
[1766577856712,0.92,122.12,122.1,2.63516693]
[1766577857090,0.92,122.12,122.1,3.34516693]
[1766577857320,0.92,122.12,122.1,0.71]
[1766577857489,0.92,122.12,122.1,3.34516693]
[1766577860018,0.92,122.12,122.1,2.39361233]
[1766577862811,0.92,122.12,122.1,0.71]
[1766577863414,0.92,122.12,122.09,0.71]
[1766577863593,0.92,122.12,122.09,2.39361233]
[1766577864508,0.92,122.12,122.09,1.68361233]
[1766577864713,0.92,122.12,122.1,0.71]
[1766577867495,0.2,122.12,122.11,2.39361233]
[1766577868415,0.2,122.13,122.11,2.39361233]
[1766577875630,0.2,122.13,122.1,10.58333621]
[1766577875631,0.72,122.12,122.1,10.58333621]
[1766577875804,0.72,122.12,122.1,1.68361233]
[1766577876712,0.72,122.12,122.1,2.35361233]
[1766577877226,0.72,122.12,122.1,0.67]
[1766577877524,0.72,122.12,122.1,2.35361233]
[1766577878014,0.72,122.12,122.1,10.54360101]
[1766577879048,0.9,122.13,122.1,10.54360101]
[1766577883142,0.7,122.1,122.06,0.68]
[1766577883317,0.7,122.09,122.06,0.68]
[1766577884251,0.7,122.09,122.06,8.87262207]
[1766577884428,2.38361233,122.12,122.08,1.68361233]
[1766577884771,0.7,122.12,122.09,0.68]
[1766577885046,8.88880764,122.12,122.09,0.68]
[1766577886057,0.2,122.13,122.11,2.36361233]
[1766577888759,0.2,122.13,122.11,9.87293595]
[1766577888965,0.2,122.15,122.12,2.36361233]
[1766577889262,0.9,122.15,122.12,2.36361233]
[1766577893279,9.08670645,122.15,122.12,2.36361233]
[1766577893446,0.9,122.15,122.12,2.36361233]
[1766577893647,0.9,122.15,122.12,0.68]
[1766577896375,0.9,122.15,122.12,2.36361233]
[1766577896877,0.9,122.15,122.12,0.68]
[1766577897963,0.2,122.15,122.12,0.68]
[1766577898270,0.7,122.14,122.12,0.68]
[1766577898674,0.7,122.14,122.11,8.86932362]
[1766577899172,0.7,122.14,122.12,0.68]
[1766577899379,0.7,122.12,122.09,0.68]
[1766577899546,0.7,122.11,122.08,71.77098906]
[1766577899743,0.7,122.11,122.08,8.87098906]
[1766577900147,0.7,122.11,122.09,0.68]
[1766577900756,0.7,122.11,122.08,8.87098906]
[1766577901081,0.7,122.1,122.07,0.68]
[1766577901372,0.7,122.09,122.07,0.68]
[1766577905777,0.46240547,122.09,122.07,0.68]
[1766577907194,1.68361233,122.12,122.08,0.72]
[1766577907696,8.18898355,122.12,122.09,0.72]
[1766577907900,8.84898355,122.12,122.09,0.72]
[1766577908398,0.66,122.11,122.09,0.72]
[1766577912480,8.84957395,122.11,122.09,0.72]
[1766577912682,8.84957395,122.11,122.08,0.72]
[1766577913081,8.18957395,122.11,122.08,0.72]
[1766577918577,8.84957395,122.11,122.08,0.72]
[1766577922101,8.18957395,122.11,122.08,0.72]
[1766577924604,8.18899616,122.12,122.09,0.72]
[1766577928807,8.84899616,122.12,122.09,0.72]
[1766577929604,11.48057702,122.12,122.09,0.72]
[1766577930303,8.84899616,122.12,122.09,0.72]
[1766577930505,31.95224423,122.12,122.09,0.72]
[1766577930708,0.66,122.07,122.01,0.72]
[1766577930886,3.29158086,122.05,122.02,0.72]
[1766577931089,3.29158086,122.04,122.0,0.72]
[1766577931504,3.29158086,122.03,122.0,0.72]
[1766577931706,0.66,122.02,121.99,0.72]
[1766577932313,8.855383,122.02,121.99,0.72]
[1766577932509,8.195383,122.02,121.99,0.72]
[1766577939006,0.66,122.01,121.98,15.06]
[1766577939196,0.66,122.01,121.98,0.82]
[1766577939598,3.29158086,122.02,121.98,0.82]
[1766577939819,0.66,122.02,121.99,0.72]
[1766577940403,11.4856156,122.04,122.0,0.72]
[1766577941298,0.66,122.03,122.0,0.72]
[1766577941499,3.29158086,122.03,122.0,0.72]
[1766577942303,0.66,122.03,122.0,0.72]
[1766577943005,8.85524613,122.03,122.0,0.72]
[1766577945026,8.85524613,122.03,121.99,0.72]
[1766577945414,11.48682699,122.03,121.99,0.72]
[1766577945717,8.85524613,122.03,121.99,0.72]
[1766577950527,0.66,122.03,121.99,10.82884303]
[1766577950708,19.291359,122.05,122.01,0.72]
[1766577951029,8.85368604,122.05,122.01,0.72]
[1766577951209,8.85368604,122.05,122.01,3.35158086]
[1766577951406,8.85368604,122.05,122.01,0.72]
[1766577952230,8.85368604,122.05,122.01,10.82742062]
[1766577952532,8.85296176,122.06,122.03,0.72]
[1766577952710,10.43767296,122.07,122.03,0.72]
[1766577952711,0.66,122.07,122.03,0.72]
[1766577952910,0.66,122.07,122.04,0.72]
[1766577953536,8.85243311,122.07,122.04,0.72]
[1766577954510,11.48401397,122.07,122.04,0.72]
[1766577955530,8.85243311,122.07,122.04,0.72]
[1766577955919,18.62922578,122.08,122.05,0.72]
[1766577956738,18.62922578,122.08,122.05,3.35158086]
[1766577960448,19.28922578,122.08,122.05,0.72]
[1766577961936,0.66,122.07,122.03,0.72]
[1766577964345,11.48410973,122.07,122.03,0.72]
[1766577967041,10.82410973,122.07,122.03,0.72]
[1766577967233,0.7,122.06,122.03,0.72]
[1766577968443,8.89318089,122.06,122.03,0.72]
[1766577970450,8.89318089,122.06,122.03,3.35158086]
[1766577970619,8.89318089,122.06,122.03,2.63158086]
[1766577970824,8.89318089,122.06,122.03,3.34158086]
[1766577973756,8.89318089,122.06,122.03,0.71]
[1766577976047,0.7,122.05,122.01,0.71]
[1766577976253,0.7,122.04,122.01,0.71]
[1766577976637,0.7,122.04,122.01,2.63158086]
[1766577976840,0.7,122.05,122.02,0.71]
[1766577978446,8.89369544,122.05,122.02,3.34158086]
[1766577978967,8.19369544,122.05,122.03,0.71]
[1766577980550,8.19369544,122.05,122.03,3.34158086]
[1766577980944,8.19369544,122.05,122.03,0.71]
[1766577986138,0.7,122.06,122.03,0.71]
[1766577986139,8.19269211,122.06,122.03,0.71]
[1766577986347,8.89269211,122.06,122.03,0.71]
[1766577986735,30.35998351,122.06,122.03,0.71]
[1766577986935,30.35998351,122.06,122.02,0.71]
[1766577986936,0.7,122.05,122.02,0.71]
[1766577988352,8.89384943,122.05,122.02,0.71]
[1766577998263,28.67725786,122.05,122.02,0.71]
[1766577998467,0.7,122.04,122.02,0.71]
[1766577998845,29.37725786,122.05,122.02,0.71]
[1766577999165,28.67725786,122.05,122.02,0.71]
[1766577999370,29.37725786,122.05,122.02,0.71]
[1766578021259,8.19384943,122.05,122.02,1.68556111]
[1766578021460,8.19384943,122.05,122.03,0.71]
[1766578022065,8.89384943,122.05,122.03,0.71]
[1766578025704,8.19302629,122.06,122.03,0.71]
[1766578026002,8.89302629,122.06,122.03,0.71]
[1766578027091,8.19302629,122.06,122.04,0.66]
[1766578027895,8.90302629,122.06,122.04,0.66]
[1766578030895,8.19302629,122.06,122.04,0.66]
[1766578031800,19.3393003,122.08,122.05,2.34556111]
[1766578031986,0.71,122.08,122.05,2.34556111]
[1766578032496,8.90138429,122.08,122.05,2.34556111]
[1766578033190,23.8610157,122.09,122.06,2.34556111]
[1766578033389,0.71,122.1,122.08,0.66]
[1766578033579,34.29724386,122.11,122.08,0.66]
[1766578033984,0.71,122.1,122.08,0.66]
[1766578037000,8.90038764,122.1,122.08,0.66]
[1766578037498,8.90038764,122.1,122.07,1.68556111]
[1766578037804,8.90038764,122.1,122.05,14.96]
[1766578037988,8.90038764,122.1,122.08,1.68556111]
[1766578038193,8.90038764,122.1,122.07,1.68556111]
[1766578039479,8.90038764,122.1,122.07,2.34556111]
[1766578042002,8.90038764,122.1,122.07,3.2915174]
[1766578051322,8.90038764,122.1,122.07,0.66]
[1766578051494,8.90038764,122.1,122.07,3.2915174]
[1766578059604,8.19038764,122.1,122.07,3.2915174]
[1766578059904,0.72,122.09,122.07,3.2915174]
[1766578060804,8.91038764,122.1,122.07,3.2915174]
[1766578061002,8.91038764,122.1,122.06,11.50405279]
[1766578061003,0.72,122.09,122.06,11.50405279]
[1766578061692,0.72,122.09,122.07,0.68]
[1766578063129,8.91038764,122.1,122.07,0.68]
[1766578065423,8.91038764,122.1,122.07,3.3115174]
[1766578067625,8.91038764,122.1,122.07,0.68]
[1766578069520,8.91038764,122.1,122.07,3.3115174]
[1766578074034,0.72,122.09,122.07,0.68]
[1766578078430,8.19038764,122.1,122.07,0.68]
[1766578078630,8.91038764,122.1,122.07,0.68]
[1766578079633,8.19038764,122.1,122.07,0.68]
[1766578079834,0.72,122.09,122.07,0.68]
[1766578080214,8.19038764,122.1,122.07,0.68]
[1766578080415,8.91038764,122.1,122.07,0.68]
[1766578080639,0.72,122.09,122.07,0.68]
[1766578082715,8.91075111,122.09,122.07,0.68]
[1766578084345,0.72,122.09,122.07,0.68]
[1766578087637,8.19034909,122.1,122.07,0.68]
[1766578087845,8.86034909,122.1,122.07,0.68]
[1766578089923,18.62720817,122.11,122.07,0.68]
[1766578090138,19.29720817,122.11,122.08,0.72]
[1766578090344,11.10767296,122.11,122.08,0.72]
[1766578090530,0.67,122.11,122.08,0.72]
[1766578093244,10.82104616,122.11,122.07,8.19191765]
[1766578093549,0.67,122.1,122.07,8.19191765]
[1766578093726,0.67,122.1,122.07,8.91191765]
[1766578095454,0.67,122.1,122.07,0.72]
[1766578096225,8.19043217,122.1,122.07,0.72]
[1766578096426,0.67,122.09,122.07,0.72]
[1766578097156,8.86077861,122.09,122.07,0.72]
[1766578107528,23.81933748,122.11,122.09,0.72]
[1766578107734,0.67,122.12,122.09,2.40457668]
[1766578109644,8.85877778,122.12,122.09,2.40457668]
[1766578109841,8.85877778,122.12,122.04,77.86]
[1766578109842,0.67,122.1,122.05,0.72]
[1766578110174,0.67,122.09,122.06,0.72]
[1766578110373,0.67,122.07,122.04,0.72]
[1766578112857,8.86224331,122.07,122.04,0.72]
[1766578128653,8.19224331,122.07,122.04,0.72]
[1766578128857,8.85224331,122.07,122.04,0.72]
[1766578130086,8.85224331,122.07,122.04,2.40457668]
[1766578131473,8.85224331,122.07,122.04,0.72]
[1766578134575,0.66,122.06,122.03,2.40457668]
[1766578134781,0.66,122.06,122.03,1.68457668]
[1766578134963,0.66,122.06,122.04,0.72]